fUST/lending_fUST_20240424
["ID","MTS","AMOUNT","RATE_DAILY","PERIOD"]
[323412685,1713973843899,-500.0,0.00016438,2]
[323412687,1713973843909,-500.0,0.00016438,2]
[323412689,1713973843918,-500.0,0.00016438,2]
[323412691,1713973843927,-500.0,0.00016438,2]
[323412693,1713973843936,-500.0,0.00016438,2]
[323412695,1713973843945,-500.0,0.00016438,2]
[323412697,1713973843954,-500.0,0.00016438,2]
[323412699,1713973843963,-500.0,0.00016438,2]
[323412701,1713973843972,-152.664016,0.00016438,2]
[323412703,1713973843981,-500.0,0.00016438,2]
[323412705,1713973843990,-500.0,0.00016438,2]
[323412707,1713973843999,-500.0,0.00016438,2]
[323412709,1713973844008,-500.0,0.00016438,2]
[323412711,1713973844017,-152.664016,0.00016438,2]
[323412713,1713973844027,-152.664016,0.00016438,2]
[323412715,1713973844036,-152.664016,0.00016438,2]
[323412717,1713973844045,-500.0,0.00016438,2]
[323412718,1713973844054,-152.664016,0.00016438,2]
[323412720,1713973844063,-502.90736301,0.00016438,2]
[323412722,1713973844072,-500.0,0.00016438,2]
[323412724,1713973844082,-500.0,0.00016438,2]
[323412726,1713973844095,-500.0,0.00016438,2]
[323412728,1713973844105,-998.74,0.00016438,2]
[323412730,1713973844114,-500.0,0.00016438,2]
[323412732,1713973844126,-152.664016,0.00016438,2]
[323412734,1713973844135,-152.664016,0.00016438,2]
[323412736,1713973844145,-500.0,0.00016438,2]
[323412738,1713973844154,-152.664016,0.00016438,2]
[323412740,1713973844165,-984.64,0.00016438,2]
[323412742,1713973844175,-152.664016,0.00016438,2]
[323412744,1713973844184,-500.0,0.00016438,2]
[323412746,1713973844193,-500.0,0.00016438,2]
[323412748,1713973844203,-500.0,0.00016438,2]
[323412750,1713973844212,-500.0,0.00016438,2]
[323412752,1713973844221,-500.0,0.00016438,2]
[323412754,1713973844230,-152.664023,0.00016438,2]
[323412756,1713973844239,-414.75664885,0.00016438,2]
[323412758,1713973844248,-151.0,0.00016438,2]
[323412760,1713973844257,-151.0,0.00016438,2]
[323412762,1713973844266,-151.0,0.00016438,2]
[323412764,1713973844275,-151.0,0.00016438,2]
[323412766,1713973844285,-500.0,0.00016438,2]
[323412768,1713973844294,-500.0,0.00016438,2]
[323412770,1713973844303,-500.0,0.00016438,2]
[323412772,1713973844312,-500.0,0.00016438,2]
[323412774,1713973844321,-500.0,0.00016438,2]
[323412776,1713973844330,-275.93619471,0.00016438,2]
[323412778,1713973844338,-507.72204126,0.00016438,2]
[323412780,1713973844348,-500.0,0.00016438,2]
[323412782,1713973844357,-365.377671,0.00016438,2]
[323412784,1713973844367,-432.75212267,0.00016438,2]
[323412786,1713973844378,-365.377671,0.00016438,2]
[323412788,1713973844387,-365.377671,0.00016438,2]
[323412790,1713973844396,-365.377671,0.00016438,2]
[323412792,1713973844404,-500.0,0.00016438,2]
[323412794,1713973844413,-365.377671,0.00016438,2]
[323412796,1713973844423,-365.377663,0.00016438,2]
[323412798,1713973844432,-500.0,0.00016438,2]
[323412800,1713973844441,-480.16175326,0.00016438,2]
[323412801,1713973844450,-500.0,0.00016438,2]
[323412803,1713973844460,-500.0,0.00016438,2]
[323412805,1713973844469,-505.55196948,0.00016438,2]
[323412807,1713973844478,-500.0,0.00016438,2]
[323412810,1713973844488,-500.0,0.00016438,2]
[323412811,1713973844497,-1093.45,0.00016438,2]
[323412813,1713973844506,-500.0,0.00016438,2]
[323412815,1713973844515,-500.0,0.00016438,2]
[323412817,1713973844524,-500.0,0.00016438,2]
[323412832,1713973844650,-705.78,0.00016438,2]
[323412834,1713973844659,-2397.32,0.00016438,2]
[323412836,1713973844669,-500.0,0.00016438,2]
[323412838,1713973844678,-500.0,0.00016438,2]
[323412840,1713973844687,-505.60295844,0.00016438,2]
[323412842,1713973844696,-500.0,0.00016438,2]
[323412844,1713973844705,-449.43301271,0.00016438,2]
[323412846,1713973844714,-500.0,0.00016438,2]
[323412848,1713973844723,-500.3042794,0.00016438,2]
[323412850,1713973844732,-500.0,0.00016438,2]
[323412852,1713973844741,-501.55250152,0.00016438,2]
[323412853,1713973844750,-500.0,0.00016438,2]
[323412855,1713973844759,-1960.03,0.00016438,2]
[323412857,1713973844769,-1000.0,0.00016438,2]
[323412859,1713973844778,-503.65481323,0.00016438,2]
[323412861,1713973844788,-500.0,0.00016438,2]
[323412863,1713973844797,-500.0,0.00016438,2]
[323412865,1713973844807,-500.0,0.00016438,2]
[323412867,1713973844816,-492.3056364,0.00016438,2]
[323412869,1713973844825,-500.0,0.00016438,2]
[323412871,1713973844835,-500.79984815,0.00016438,2]
[323412873,1713973844844,-322.274581,0.00016438,2]
[323412875,1713973844853,-10747.6,0.00016438,2]
[323412877,1713973844863,-322.274581,0.00016438,2]
[323412879,1713973844872,-973.901536,0.00016438,2]
[323412881,1713973844881,-973.901536,0.00016438,2]
[323412883,1713973844891,-500.43888082,0.00016438,2]
[323412885,1713973844900,-973.901536,0.00016438,2]
[323412887,1713973844909,-822.61,0.00016438,2]
[323412889,1713973844918,-322.274581,0.00016438,2]
[323412891,1713973844927,-500.66767919,0.00016438,2]
[323412893,1713973844937,-973.901536,0.00016438,2]
[323412895,1713973844946,-973.901536,0.00016438,2]
[323412897,1713973844955,-973.901545,0.00016438,2]
[323412898,1713973844964,-505.84810529,0.00016438,2]
[323412900,1713973844974,-322.274581,0.00016438,2]
[323412902,1713973844984,-500.0,0.00016438,2]
[323412904,1713973844993,-623.46639961,0.00016438,2]
[323412906,1713973845002,-496.38210146,0.00016438,2]
[323412908,1713973845011,-1001.97,0.00016438,2]
[323412910,1713973845021,-500.63077636,0.00016438,2]
[323412911,1713973845030,-500.0,0.00016438,2]
[323412912,1713973845039,-507.7455405,0.00016438,2]
[323412914,1713973845048,-322.274581,0.00016438,2]
[323412916,1713973845058,-322.27457805,0.00016438,2]
[323412917,1713973845067,-500.0,0.00016438,2]
[323412919,1713973845076,-500.0,0.00016438,2]
[323412921,1713973845087,-502.18138017,0.00016438,2]
[323412923,1713973845098,-1272.98,0.00016438,2]
[323412925,1713973845107,-500.0,0.00016438,2]
[323412926,1713973845116,-500.0,0.00016438,2]
[323412927,1713973845127,-1047.3,0.00016438,2]
[323412928,1713973845135,-938.72,0.00016438,2]
[323412929,1713973845145,-500.0,0.00016438,2]
[323412930,1713973845154,-1002.06,0.00016438,2]
[323412931,1713973845163,-500.0,0.00016438,2]
[323412932,1713973845173,-500.0,0.00016438,2]
[323412933,1713973845183,-501.70168365,0.00016438,2]
[323412934,1713973845192,-500.0,0.00016438,2]
[323412935,1713973845202,-615.69,0.00016438,2]
[323412936,1713973845211,-500.0,0.00016438,2]
[323412937,1713973845220,-500.0,0.00016438,2]
[323412938,1713973845230,-7332.05,0.00016438,2]
[323412939,1713973845241,-500.0,0.00016438,2]
[323412940,1713973845251,-19476.72,0.00016438,2]
[323412941,1713973845261,-500.0,0.00016438,2]
[323412942,1713973845270,-500.0,0.00016438,2]
[323412943,1713973845279,-500.0,0.00016438,2]
[323412944,1713973845289,-500.0,0.00016438,2]
[323412945,1713973845298,-500.0,0.00016438,2]
[323412946,1713973845306,-1096.43,0.00016438,2]
[323412947,1713973845315,-500.0,0.00016438,2]
[323412948,1713973845325,-500.0,0.00016438,2]
[323412949,1713973845334,-500.0,0.00016438,2]
[323412950,1713973845343,-600.61940075,0.00016438,2]
[323412952,1713973845353,-500.32518761,0.00016438,2]
[323412954,1713973845362,-500.28860774,0.00016438,2]
[323412956,1713973845372,-512.31997285,0.00016438,2]
[323412958,1713973845381,-500.0,0.00016438,2]
[323412960,1713973845390,-500.0,0.00016438,2]
[323412962,1713973845400,-629.51,0.00016438,2]
[323412963,1713973845408,-500.0,0.00016438,2]
[323412965,1713973845418,-500.0,0.00016438,2]
[323412967,1713973845427,-500.0,0.00016438,2]
[323412969,1713973845436,-500.0,0.00016438,2]
[323412971,1713973845445,-530.3,0.00016438,2]
[323412973,1713973845454,-500.0,0.00016438,2]
[323412975,1713973845464,-530.3,0.00016438,2]
[323412977,1713973845474,-530.3,0.00016438,2]
[323412979,1713973845486,-530.3,0.00016438,2]
[323412981,1713973845495,-500.0,0.00016438,2]
[323412983,1713973845504,-530.3,0.00016438,2]
[323412985,1713973845513,-530.3,0.00016438,2]
[323412987,1713973845522,-530.3,0.00016438,2]
[323412989,1713973845531,-500.0,0.00016438,2]
[323412992,1713973845541,-530.3,0.00016438,2]
[323412994,1713973845551,-530.3,0.00016438,2]
[323412995,1713973845561,-530.3,0.00016438,2]
[323412997,1713973845570,-530.3,0.00016438,2]
[323412999,1713973845579,-530.3,0.00016438,2]
[323413001,1713973845588,-15898.31,0.00016438,2]
[323413004,1713973845599,-530.3,0.00016438,2]
[323413006,1713973845608,-500.0,0.00016438,2]
[323413007,1713973845618,-530.3,0.00016438,2]
[323413009,1713973845633,-500.0,0.00016438,2]
[323413012,1713973845643,-530.3,0.00016438,2]
[323413013,1713973845652,-502.26229951,0.00016438,2]
[323413015,1713973845662,-530.3,0.00016438,2]
[323413017,1713973845673,-530.3,0.00016438,2]
[323413019,1713973845682,-530.3,0.00016438,2]
[323413021,1713973845691,-530.3,0.00016438,2]
[323413024,1713973845702,-530.3,0.00016438,2]
[323413025,1713973845711,-530.3,0.00016438,2]
[323413027,1713973845720,-530.3,0.00016438,2]
[323413029,1713973845730,-530.3,0.00016438,2]
[323413031,1713973845739,-530.49429339,0.00016438,2]
[323413033,1713973845748,-380.85746658,0.00016438,2]
[323413035,1713973845757,-545.29,0.00016438,2]
[323413037,1713973845767,-500.0,0.00016438,2]
[323413039,1713973845776,-500.0,0.00016438,2]
[323413041,1713973845784,-500.0,0.00016438,2]
[323413043,1713973845793,-500.0,0.00016438,2]
[323413045,1713973845802,-500.0,0.00016438,2]
[323413047,1713973845811,-500.0,0.00016438,2]
[323413049,1713973845820,-1298.62,0.00016438,2]
[323413051,1713973845829,-500.0,0.00016438,2]
[323413053,1713973845839,-602.15,0.00016438,2]
[323413055,1713973845848,-500.0,0.00016438,2]
[323413057,1713973845858,-500.0,0.00016438,2]
[323413059,1713973845867,-500.0,0.00016438,2]
[323413061,1713973845881,-500.0,0.00016438,2]
[323413063,1713973845890,-1307.55,0.00016438,2]
[323413065,1713973845899,-500.0,0.00016438,2]
[323413068,1713973845908,-588.62107342,0.00016438,2]
[323413071,1713973845917,-500.0,0.00016438,2]
[323413073,1713973845926,-500.0,0.00016438,2]
[323413075,1713973845936,-1533.51,0.00016438,2]
[323413077,1713973845945,-1480.74,0.00016438,2]
[323413079,1713973845955,-1355.25,0.00016438,2]
[323413081,1713973845965,-500.0,0.00016438,2]
[323413084,1713973845975,-2155.08,0.00016438,2]
[323413086,1713973845984,-641.71,0.00016438,2]
[323413088,1713973845993,-503.51296791,0.00016438,2]
[323413090,1713973846002,-500.0,0.00016438,2]
[323413092,1713973846011,-151.0,0.00016438,2]
[323413094,1713973846021,-151.0,0.00016438,2]
[323413095,1713973846030,-500.0,0.00016438,2]
[323413097,1713973846039,-500.0,0.00016438,2]
[323413100,1713973846049,-500.0,0.00016438,2]
[323413102,1713973846058,-1175.27,0.00016438,2]
[323413104,1713973846068,-500.60779908,0.00016438,2]
[323413106,1713973846078,-500.0,0.00016438,2]
[323413108,1713973846089,-1675.37,0.00016438,2]
[323413110,1713973846098,-500.0,0.00016438,2]
[323413112,1713973846108,-500.0,0.00016438,2]
[323413114,1713973846117,-500.33849054,0.00016438,2]
[323413116,1713973846132,-442.11905763,0.00016438,2]
[323413118,1713973846141,-500.0,0.00016438,2]
[323413120,1713973846151,-500.0,0.00016438,2]
[323413122,1713973846161,-500.0,0.00016438,2]
[323413124,1713973846170,-500.0,0.00016438,2]
[323413126,1713973846180,-500.0,0.00016438,2]
[323413128,1713973846189,-500.0,0.00016438,2]
[323413130,1713973846198,-500.0,0.00016438,2]
[323413132,1713973846208,-500.81982307,0.00016438,2]
[323413134,1713973846217,-500.0,0.00016438,2]
[323413136,1713973846227,-500.0,0.00016438,2]
[323413138,1713973846236,-1788.24,0.00016438,2]
[323413140,1713973846245,-500.0,0.00016438,2]
[323413142,1713973846254,-1123.22,0.00016438,2]
[323413144,1713973846264,-500.0,0.00016438,2]
[323413146,1713973846272,-2426.9,0.00016438,2]
[323413148,1713973846281,-528.40626369,0.00016438,2]
[323413150,1713973846290,-500.0,0.00016438,2]
[323413152,1713973846299,-500.0,0.00016438,2]
[323413154,1713973846309,-500.0,0.00016438,2]
[323413156,1713973846319,-7241.22,0.00016438,2]
[323413158,1713973846328,-500.88350996,0.00016438,2]
[323413160,1713973846337,-756.6,0.00016438,2]
[323413162,1713973846346,-500.0,0.00016438,2]
[323413164,1713973846355,-529.0,0.00016438,2]
[323413166,1713973846364,-971.73,0.00016438,2]
[323413168,1713973846377,-500.0,0.00016438,2]
[323413170,1713973846386,-720.48,0.00016438,2]
[323413172,1713973846398,-749.1,0.00016438,2]
[323413173,1713973846408,-500.0,0.00016438,2]
[323413176,1713973846417,-500.0,0.00016438,2]
[323413177,1713973846426,-3467.77,0.00016438,2]
[323413179,1713973846436,-1047.76,0.00016438,2]
[323413181,1713973846446,-691.77,0.00016438,2]
[323413183,1713973846455,-500.0,0.00016438,2]
[323413185,1713973846464,-500.0,0.00016438,2]
[323413187,1713973846473,-500.0,0.00016438,2]
[323413189,1713973846482,-5159.31,0.00016438,2]
[323413191,1713973846491,-500.0,0.00016438,2]
[323413193,1713973846500,-200.09147316,0.00016438,2]
[323413195,1713973846509,-500.0,0.00016438,2]
[323413197,1713973846518,-155.35508982,0.00016438,2]
[323413199,1713973846527,-151.36560727,0.00016438,2]
[323413201,1713973846536,-611.69,0.00016438,2]
[323413203,1713973846545,-783.87,0.00016438,2]
[323413205,1713973846555,-500.23811405,0.00016438,2]
[323413207,1713973846565,-3678.5,0.00016438,2]
[323413209,1713973846574,-453.33621322,0.00016438,2]
[323413211,1713973846583,-500.0,0.00016438,2]
[323413213,1713973846592,-500.0,0.00016438,2]
[323413215,1713973846601,-424.82908857,0.00016438,2]
[323413217,1713973846611,-500.0,0.00016438,2]
[323413219,1713973846620,-636.88257817,0.00016438,2]
[323413221,1713973846632,-500.0,0.00016438,2]
[323413223,1713973846642,-549.95,0.00016438,2]
[323413225,1713973846650,-549.95,0.00016438,2]
[323413227,1713973846659,-549.95,0.00016438,2]
[323413229,1713973846670,-1985.19,0.00016438,2]
[323413231,1713973846679,-549.95,0.00016438,2]
[323413233,1713973846688,-549.95,0.00016438,2]
[323413235,1713973846698,-389.04537626,0.00016438,2]
[323413238,1713973846707,-549.95,0.00016438,2]
[323413239,1713973846716,-549.95,0.00016438,2]
[323413241,1713973846726,-549.95,0.00016438,2]
[323413244,1713973846735,-549.95,0.00016438,2]
[323413246,1713973846745,-549.95,0.00016438,2]
[323413247,1713973846754,-549.95,0.00016438,2]
[323413249,1713973846764,-719.948416,0.00016438,2]
[323413252,1713973846774,-549.95,0.00016438,2]
[323413253,1713973846783,-500.0,0.00016438,2]
[323413255,1713973846792,-719.948416,0.00016438,2]
[323413257,1713973846802,-641.44,0.00016438,2]
[323413259,1713973846811,-2116.28,0.00016438,2]
[323413261,1713973846820,-549.95,0.00016438,2]
[323413263,1713973846829,-719.948416,0.00016438,2]
[323413265,1713973846838,-549.95,0.00016438,2]
[323413267,1713973846847,-719.948416,0.00016438,2]
[323413269,1713973846856,-500.69191621,0.00016438,2]
[323413271,1713973846865,-549.95,0.00016438,2]
[323413273,1713973846877,-516.29,0.00016438,2]
[323413275,1713973846887,-549.95,0.00016438,2]
[323413277,1713973846896,-21869.9,0.00016438,2]
[323413279,1713973846906,-549.95,0.00016438,2]
[323413281,1713973846915,-549.95,0.00016438,2]
[323413283,1713973846925,-549.95,0.00016438,2]
[323413285,1713973846934,-719.948416,0.00016438,2]
[323413287,1713973846943,-719.948416,0.00016438,2]
[323413289,1713973846953,-549.95,0.00016438,2]
[323413303,1713973846963,-1052.56,0.00016438,2]
[323413305,1713973847093,-719.948416,0.00016438,2]
[323413307,1713973847102,-719.948418,0.00016438,2]
[323413309,1713973847112,-549.95,0.00016438,2]
[323413311,1713973847121,-549.95,0.00016438,2]
[323413313,1713973847134,-549.95,0.00016438,2]
[323413315,1713973847143,-550.17971077,0.00016438,2]
[323413317,1713973847152,-500.0,0.00016438,2]
[323413319,1713973847162,-500.0,0.00016438,2]
[323413321,1713973847172,-500.0,0.00016438,2]
[323413323,1713973847181,-1414.49,0.00016438,2]
[323413325,1713973847190,-624.27,0.00016438,2]
[323413327,1713973847199,-341.95663076,0.00016438,2]
[323413329,1713973847208,-500.0,0.00016438,2]
[323413331,1713973847217,-505.59078504,0.00016438,2]
[323413333,1713973847226,-962.52,0.00016438,2]
[323413335,1713973847236,-500.0,0.00016438,2]
[323413337,1713973847245,-500.0,0.00016438,2]
[323413339,1713973847254,-500.0,0.00016438,2]
[323413341,1713973847263,-7037.05,0.00016438,2]
[323413343,1713973847272,-500.9898219,0.00016438,2]
[323413344,1713973847281,-500.0,0.00016438,2]
[323413347,1713973847291,-922.08,0.00016438,2]
[323413348,1713973847302,-500.0,0.00016438,2]
[323413350,1713973847313,-10281.24,0.00016438,2]
[323413352,1713973847322,-500.0,0.00016438,2]
[323413354,1713973847332,-500.0,0.00016438,2]
[323413356,1713973847341,-587.01,0.00016438,2]
[323413358,1713973847351,-2381.69,0.00016438,2]
[323413360,1713973847361,-500.0,0.00016438,2]
[323413363,1713973847370,-1630.87,0.00016438,2]
[323413365,1713973847383,-502.77968063,0.00016438,2]
[323413366,1713973847392,-500.0,0.00016438,2]
[323413369,1713973847402,-1092.33,0.00016438,2]
[323413370,1713973847411,-400.0,0.00016438,2]
[323413372,1713973847422,-272.61360926,0.000165,2]
[323413374,1713973847431,-1500.0,0.000165,2]
[323413376,1713973847440,-1500.0,0.000165,2]
[323413378,1713973847449,-1500.0,0.000165,2]
[323413380,1713973847458,-1500.0,0.000165,2]
[323413382,1713973847467,-1500.0,0.000165,2]
[323413384,1713973847477,-1239.65,0.000165,2]
[323413386,1713973847487,-1500.0,0.000165,2]
[323413388,1713973847496,-1500.0,0.000165,2]
[323413390,1713973847505,-1500.0,0.000165,2]
[323413392,1713973847514,-1500.0,0.000165,2]
[323413394,1713973847524,-1500.0,0.000165,2]
[323413396,1713973847533,-334.685207,0.00016524,2]
[323413398,1713973847542,-160.351996,0.00016524,2]
[323413400,1713973847551,-2788.962873,0.00016524,2]
[323413402,1713973847560,-1859.308583,0.00016524,2]
[323413404,1713973847569,-3848.879882,0.00016524,2]
[323413406,1713973847580,-167.280027,0.00016524,2]
[323413408,1713973847589,-250.373711,0.00016524,2]
[323413410,1713973847599,-1345.39,0.00016712,2]
[323413412,1713973847609,-500.0,0.00016712,2]
[323413414,1713973847618,-500.0,0.00016712,2]
[323413416,1713973847628,-500.0,0.00016712,2]
[323413418,1713973847638,-500.0,0.00016712,2]
[323413420,1713973847647,-377.25496543,0.00016712,2]
[323413422,1713973847657,-500.0,0.00016712,2]
[323413424,1713973847667,-500.0,0.00016712,2]
[323413426,1713973847676,-500.0,0.00016712,2]
[323413428,1713973847684,-500.0,0.00016712,2]
[323413430,1713973847693,-500.92107633,0.00016712,2]
[323413432,1713973847702,-509.71347323,0.00016712,2]
[323413434,1713973847712,-500.0,0.00016712,2]
[323413436,1713973847720,-1024.92,0.00016712,2]
[323413437,1713973847730,-500.0,0.00016712,2]
[323413438,1713973847739,-502.2687264,0.00016712,2]
[323413439,1713973847748,-500.0,0.00016712,2]
[323413440,1713973847757,-500.76994884,0.00016712,2]
[323413441,1713973847766,-654.09,0.00016712,2]
[323413442,1713973847776,-500.0,0.00016712,2]
[323413444,1713973847785,-623.31499661,0.00016712,2]
[323413446,1713973847794,-500.0,0.00016712,2]
[323413447,1713973847803,-500.0,0.00016712,2]
[323413449,1713973847813,-637.62,0.00016712,2]
[323413451,1713973847822,-500.0,0.00016712,2]
[323413453,1713973847831,-541.66,0.00016712,2]
[323413455,1713973847840,-500.0,0.00016712,2]
[323413457,1713973847849,-500.0,0.00016712,2]
[323413459,1713973847858,-500.0,0.00016712,2]
[323413461,1713973847868,-500.0,0.00016712,2]
[323413463,1713973847880,-500.0,0.00016712,2]
[323413465,1713973847889,-500.0,0.00016712,2]
[323413468,1713973847898,-500.0,0.00016712,2]
[323413470,1713973847907,-510.45822436,0.00016712,2]
[323413472,1713973847917,-500.0,0.00016712,2]
[323413474,1713973847927,-500.0,0.00016712,2]
[323413476,1713973847937,-500.0,0.00016712,2]
[323413478,1713973847946,-500.98348651,0.00016712,2]
[323413480,1713973847956,-501.2602715,0.00016712,2]
[323413482,1713973847965,-637.46,0.00016712,2]
[323413484,1713973847974,-500.0,0.00016712,2]
[323413486,1713973847983,-500.55821023,0.00016712,2]
[323413488,1713973847992,-1841.01,0.00016712,2]
[323413490,1713973848002,-877.6,0.00016712,2]
[323413492,1713973848011,-500.0,0.00016712,2]
[323413494,1713973848020,-500.0,0.00016712,2]
[323413496,1713973848028,-501.6743332,0.00016712,2]
[323413498,1713973848037,-500.55076593,0.00016712,2]
[323413500,1713973848047,-783.92,0.00016712,2]
[323413502,1713973848056,-500.0,0.00016712,2]
[323413504,1713973848065,-500.0,0.00016712,2]
[323413506,1713973848075,-639.1,0.00016712,2]
[323413507,1713973848085,-500.0,0.00016712,2]
[323413510,1713973848097,-786.08,0.00016712,2]
[323413511,1713973848106,-500.0,0.00016712,2]
[323413514,1713973848115,-500.0,0.00016712,2]
[323413516,1713973848126,-500.0,0.00016712,2]
[323413518,1713973848136,-500.0,0.00016712,2]
[323413520,1713973848144,-500.0,0.00016712,2]
[323413521,1713973848154,-330.04666515,0.00016712,2]
[323413524,1713973848164,-500.0,0.00016712,2]
[323413526,1713973848173,-500.0,0.00016712,2]
[323413528,1713973848183,-500.0,0.00016712,2]
[323413530,1713973848192,-500.53434744,0.00016712,2]
[323413532,1713973848201,-500.0,0.00016712,2]
[323413534,1713973848210,-1310.72,0.00016712,2]
[323413536,1713973848219,-776.68,0.00016712,2]
[323413538,1713973848229,-507.23561629,0.00016712,2]
[323413540,1713973848238,-3073.94,0.00016712,2]
[323413542,1713973848248,-205.32066597,0.00016712,2]
[323413543,1713973848258,-500.0,0.00016712,2]
[323413546,1713973848267,-500.0,0.00016712,2]
[323413548,1713973848278,-500.0,0.00016712,2]
[323413550,1713973848288,-500.0,0.00016712,2]
[323413552,1713973848298,-500.0,0.00016712,2]
[323413553,1713973848307,-501.27309174,0.00016712,2]
[323413555,1713973848316,-500.0,0.00016712,2]
[323413558,1713973848325,-500.0,0.00016712,2]
[323413560,1713973848334,-500.0,0.00016712,2]
[323413562,1713973848343,-1655.34,0.00016712,2]
[323413564,1713973848353,-512.78430323,0.00016712,2]
[323413565,1713973848362,-939.9,0.00016712,2]
[323413567,1713973848371,-500.0,0.00016712,2]
[323413569,1713973848382,-4954.95,0.00016712,2]
[323413571,1713973848392,-500.0,0.00016712,2]
[323413573,1713973848400,-507.82645358,0.00016712,2]
[323413575,1713973848409,-500.0,0.00016712,2]
[323413577,1713973848418,-2682.8,0.00016712,2]
[323413579,1713973848427,-1209.51,0.00016712,2]
[323413581,1713973848437,-628.65496616,0.00016712,2]
[323413583,1713973848446,-818.79,0.00016712,2]
[323413585,1713973848455,-500.0,0.00016712,2]
[323413587,1713973848464,-500.0,0.00016712,2]
[323413589,1713973848473,-500.0,0.00016712,2]
[323413591,1713973848482,-500.0,0.00016712,2]
[323413593,1713973848491,-500.0,0.00016712,2]
[323413595,1713973848501,-1113.86,0.00016712,2]
[323413597,1713973848511,-500.0,0.00016712,2]
[323413599,1713973848521,-627.1,0.00016712,2]
[323413601,1713973848530,-500.0,0.00016712,2]
[323413603,1713973848539,-550.62,0.00016712,2]
[323413605,1713973848548,-500.0,0.00016712,2]
[323413607,1713973848557,-500.0,0.00016712,2]
[323413609,1713973848566,-500.0,0.00016712,2]
[323413611,1713973848575,-292.95212173,0.00016712,2]
[323413613,1713973848584,-500.0,0.00016712,2]
[323413615,1713973848594,-500.0,0.00016712,2]
[323413617,1713973848603,-500.0,0.00016712,2]
[323413620,1713973848612,-882.83,0.00016712,2]
[323413622,1713973848623,-1098.08,0.00016712,2]
[323413624,1713973848634,-500.0,0.00016712,2]
[323413625,1713973848643,-745.36,0.00016712,2]
[323413627,1713973848652,-500.0,0.00016712,2]
[323413629,1713973848662,-500.0,0.00016712,2]
[323413631,1713973848671,-500.0,0.00016712,2]
[323413633,1713973848681,-666.75,0.00016712,2]
[323413635,1713973848690,-500.95731979,0.00016712,2]
[323413637,1713973848699,-500.0,0.00016712,2]
[323413639,1713973848709,-878.02,0.00016712,2]
[323413642,1713973848720,-2175.21,0.00016712,2]
[323413643,1713973848729,-500.0,0.00016712,2]
[323413645,1713973848738,-500.0,0.00016712,2]
[323413647,1713973848748,-500.0,0.00016712,2]
[323413649,1713973848758,-500.0,0.00016712,2]
[323413652,1713973848768,-500.0,0.00016712,2]
[323413653,1713973848779,-744.14,0.00016712,2]
[323413655,1713973848789,-500.29204213,0.00016712,2]
[323413657,1713973848799,-500.0,0.00016712,2]
[323413660,1713973848809,-500.0,0.00016712,2]
[323413661,1713973848818,-500.61663028,0.00016712,2]
[323413664,1713973848827,-500.0,0.00016712,2]
[323413665,1713973848837,-500.0,0.00016712,2]
[323413667,1713973848846,-500.0,0.00016712,2]
[323413670,1713973848855,-500.0,0.00016712,2]